[Event "*** Titled Tuesday Blitz"]
[Site "Chess.com"]
[Date "2020.11.24"]
[Round "9"]
[White "Roman_Ovetchkin"]
[Black "Guachiney"]
[Result "1-0"]
[WhiteElo "2653"]
[BlackElo "2747"]
[TimeControl "180+1"]
[EndTime "12:03:20 PST"]
[Termination "Roman_Ovetchkin won on time"]

1. d4 {[%clk 0:03:00.9]} 1... d6 {[%clk 0:02:57.6]} 2. e4 {[%clk 0:02:59.9]}
2... Nf6 {[%clk 0:02:57.7]} 3. Nc3 {[%clk 0:03:00.1]} 3... g6 {[%clk 0:02:58.2]}
4. f4 {[%clk 0:02:57.6]} 4... Bg7 {[%clk 0:02:58]} 5. Nf3 {[%clk 0:02:57.7]}
5... c5 {[%clk 0:02:58]} 6. Bb5+ {[%clk 0:02:44.5]} 6... Nc6 {[%clk 0:02:57.8]}
7. dxc5 {[%clk 0:02:38.6]} 7... O-O {[%clk 0:02:57.3]} 8. O-O {[%clk 0:02:30]}
8... Qa5 {[%clk 0:02:56.8]} 9. cxd6 {[%clk 0:02:17.4]} 9... Nxe4 {[%clk
0:02:56.7]} 10. Nxe4 {[%clk 0:01:53.5]} 10... Qxb5 {[%clk 0:02:56.4]} 11. dxe7
{[%clk 0:01:52.7]} 11... Nxe7 {[%clk 0:02:56.9]} 12. c3 {[%clk 0:01:46.6]} 12...
Bf5 {[%clk 0:02:56.6]} 13. Nf2 {[%clk 0:01:40.3]} 13... Rad8 {[%clk 0:02:50.6]}
14. Qb3 {[%clk 0:01:38.5]} 14... Qa6 {[%clk 0:02:39.1]} 15. Be3 {[%clk
0:01:02.1]} 15... Nd5 {[%clk 0:02:38.4]} 16. Bd4 {[%clk 0:01:01.9]} 16... Nxf4
{[%clk 0:02:36.8]} 17. Bxg7 {[%clk 0:01:01.5]} 17... Kxg7 {[%clk 0:02:37.7]} 18.
Rfe1 {[%clk 0:01:00.4]} 18... Qc6 {[%clk 0:02:06.3]} 19. Qb4 {[%clk 0:00:53.8]}
19... g5 {[%clk 0:01:09.6]} 20. Re5 {[%clk 0:00:47.2]} 20... Bg6 {[%clk
0:00:57.5]} 21. Rxg5 {[%clk 0:00:39.9]} 21... h6 {[%clk 0:00:33.7]} 22. Rc5
{[%clk 0:00:38.1]} 22... Qd6 {[%clk 0:00:16.1]} 23. Rc4 {[%clk 0:00:32.4]} 23...
Ne2+ {[%clk 0:00:14.5]} 24. Kf1 {[%clk 0:00:31.3]} 24... Qe6 {[%clk 0:00:08.5]}
25. Re1 {[%clk 0:00:23.8]} 25... Rfe8 {[%clk 0:00:08.4]} 26. Rd4 {[%clk
0:00:16.3]} 26... Rxd4 {[%clk 0:00:03.6]} 27. cxd4 {[%clk 0:00:13.4]} 27... Qa6
{[%clk 0:00:03.5]} 28. Qd2 {[%clk 0:00:07.3]} 28... Nxd4+ {[%clk 0:00:01.7]} 29.
Kg1 {[%clk 0:00:06.5]} 29... Nxf3+ {[%clk 0:00:02.2]} 30. gxf3 {[%clk
0:00:06.6]} 30... Rxe1+ {[%clk 0:00:03.1]} 31. Qxe1 {[%clk 0:00:06.3]} 31...
Qxa2 {[%clk 0:00:04]} 32. Qc3+ {[%clk 0:00:06.5]} 32... f6 {[%clk 0:00:03.6]}
33. Qc7+ {[%clk 0:00:04.5]} 33... Bf7 {[%clk 0:00:02.6]} 34. Qxb7 {[%clk
0:00:04.5]} 34... Qb1+ {[%clk 0:00:01.5]} 35. Kg2 {[%clk 0:00:04.6]} 35... a5
{[%clk 0:00:01.2]} 36. Ne4 {[%clk 0:00:03]} 1-0

[Event "*** Titled Tuesday Blitz"]
[Site "Chess.com"]
[Date "2020.11.24"]
[Round "9"]
[White "hansen"]
[Black "Dedic8"]
[Result "1-0"]
[WhiteElo "2944"]
[BlackElo "2822"]
[TimeControl "180+1"]
[EndTime "12:03:22 PST"]
[Termination "hansen won on time"]

1. e4 {[%clk 0:03:00.9]} 1... e5 {[%clk 0:03:00.1]} 2. Nf3 {[%clk 0:03:01.4]}
2... Nc6 {[%clk 0:02:59.8]} 3. Bb5 {[%clk 0:03:01.6]} 3... a6 {[%clk 0:02:59.8]}
4. Ba4 {[%clk 0:03:02.1]} 4... Nf6 {[%clk 0:03:00.1]} 5. O-O {[%clk 0:03:02.7]}
5... Be7 {[%clk 0:03:00.5]} 6. Re1 {[%clk 0:03:03.1]} 6... b5 {[%clk 0:03:00.9]}
7. Bb3 {[%clk 0:03:03.3]} 7... O-O {[%clk 0:03:01.6]} 8. h3 {[%clk 0:03:03.5]}
8... Bb7 {[%clk 0:03:00.6]} 9. d3 {[%clk 0:03:03.6]} 9... d6 {[%clk 0:02:51.2]}
10. a3 {[%clk 0:03:03.5]} 10... Re8 {[%clk 0:02:44.8]} 11. Nc3 {[%clk
0:03:03.6]} 11... Bf8 {[%clk 0:02:40]} 12. Ne2 {[%clk 0:02:55.8]} 12... g6
{[%clk 0:02:35.2]} 13. Ng3 {[%clk 0:02:53.5]} 13... Bg7 {[%clk 0:02:35.2]} 14.
Bg5 {[%clk 0:02:52.4]} 14... Na5 {[%clk 0:02:32.2]} 15. Ba2 {[%clk 0:02:52.3]}
15... h6 {[%clk 0:02:32.1]} 16. Bd2 {[%clk 0:02:50.2]} 16... c5 {[%clk
0:02:11.2]} 17. Qc1 {[%clk 0:02:49.9]} 17... h5 {[%clk 0:02:11.4]} 18. Bh6
{[%clk 0:02:43]} 18... Nh7 {[%clk 0:01:56]} 19. b4 {[%clk 0:02:15]} 19... Nc6
{[%clk 0:01:50.5]} 20. c3 {[%clk 0:02:15.4]} 20... Qf6 {[%clk 0:01:34.1]} 21.
Be3 {[%clk 0:02:06]} 21... cxb4 {[%clk 0:01:24.5]} 22. axb4 {[%clk 0:02:05.8]}
22... Qe7 {[%clk 0:01:09]} 23. Qd2 {[%clk 0:01:56]} 23... Nd8 {[%clk 0:01:08.6]}
24. Ng5 {[%clk 0:01:20.2]} 24... Nxg5 {[%clk 0:01:02.5]} 25. Bxg5 {[%clk
0:01:21.1]} 25... Bf6 {[%clk 0:01:02.5]} 26. f4 {[%clk 0:01:17.1]} 26... Bxg5
{[%clk 0:00:48.9]} 27. fxg5 {[%clk 0:01:17.2]} 27... Ne6 {[%clk 0:00:49.2]} 28.
h4 {[%clk 0:01:14.3]} 28... Nf4 {[%clk 0:00:48.6]} 29. Rf1 {[%clk 0:01:11.2]}
29... d5 {[%clk 0:00:26.3]} 30. exd5 {[%clk 0:01:10.6]} 30... Bxd5 {[%clk
0:00:23.2]} 31. Bxd5 {[%clk 0:01:10.2]} 31... Nxd5 {[%clk 0:00:23.4]} 32. Ne4
{[%clk 0:01:10.9]} 32... Kg7 {[%clk 0:00:23.9]} 33. Rf6 {[%clk 0:01:09.5]} 33...
Qf8 {[%clk 0:00:18.7]} 34. Rc6 {[%clk 0:01:03.3]} 34... Nf4 {[%clk 0:00:17.4]}
35. g3 {[%clk 0:00:53.4]} 35... Re6 {[%clk 0:00:13]} 36. Rc5 {[%clk 0:00:49.3]}
36... Qd8 {[%clk 0:00:09.3]} 37. gxf4 {[%clk 0:00:49]} 37... exf4 {[%clk
0:00:10.2]} 38. Rd1 {[%clk 0:00:45.2]} 38... a5 {[%clk 0:00:10.1]} 39. bxa5
{[%clk 0:00:40.4]} 39... Rxa5 {[%clk 0:00:10.2]} 40. Qxf4 {[%clk 0:00:40.1]}
40... Ra2 {[%clk 0:00:09]} 41. Rc7 {[%clk 0:00:39.2]} 41... Qe8 {[%clk
0:00:04.3]} 42. Rf1 {[%clk 0:00:38.4]} 42... Kg8 {[%clk 0:00:01.8]} 43. Qxf7+
{[%clk 0:00:30]} 43... Qxf7 {[%clk 0:00:01.7]} 44. Rfxf7 {[%clk 0:00:30.9]}
44... b4 {[%clk 0:00:01.3]} 45. Rfd7 {[%clk 0:00:28.4]} 1-0

[Event "*** Titled Tuesday Blitz"]
[Site "Chess.com"]
[Date "2020.11.24"]
[Round "9"]
[White "Ranindu2003"]
[Black "SergeyShtyka"]
[Result "1-0"]
[WhiteElo "2565"]
[BlackElo "2403"]
[TimeControl "180+1"]
[EndTime "12:03:22 PST"]
[Termination "Ranindu2003 won on time"]

1. e4 {[%clk 0:03:00.2]} 1... c5 {[%clk 0:02:59.4]} 2. Nf3 {[%clk 0:03:00.4]}
2... Nc6 {[%clk 0:02:58.6]} 3. d4 {[%clk 0:02:59.7]} 3... cxd4 {[%clk 0:02:59]}
4. Nxd4 {[%clk 0:03:00.6]} 4... Nf6 {[%clk 0:02:59.4]} 5. Nc3 {[%clk 0:03:00.7]}
5... e5 {[%clk 0:02:58.1]} 6. Ndb5 {[%clk 0:03:00.8]} 6... h6 {[%clk 0:02:58.3]}
7. Nd5 {[%clk 0:02:53.5]} 7... Nxd5 {[%clk 0:02:58]} 8. exd5 {[%clk 0:02:54.4]}
8... a6 {[%clk 0:02:58.6]} 9. Nc3 {[%clk 0:02:23.5]} 9... Nd4 {[%clk 0:02:58.2]}
10. Be3 {[%clk 0:02:23.4]} 10... Nf5 {[%clk 0:02:56.1]} 11. Bd2 {[%clk
0:02:15.8]} 11... d6 {[%clk 0:02:54.1]} 12. Bd3 {[%clk 0:02:15.4]} 12... g6
{[%clk 0:02:53.2]} 13. O-O {[%clk 0:02:13.8]} 13... Bg7 {[%clk 0:02:53]} 14. f4
{[%clk 0:02:12.6]} 14... exf4 {[%clk 0:02:35.1]} 15. Re1+ {[%clk 0:01:51.1]}
15... Ne3 {[%clk 0:02:19]} 16. Qf3 {[%clk 0:01:35.6]} 16... O-O {[%clk
0:02:11.2]} 17. Qxf4 {[%clk 0:01:28.3]} 17... Nf5 {[%clk 0:02:03.9]} 18. Rab1
{[%clk 0:01:22.1]} 18... Be5 {[%clk 0:01:06.6]} 19. Qf3 {[%clk 0:01:08]} 19...
Qh4 {[%clk 0:00:52.1]} 20. g3 {[%clk 0:00:56.4]} 20... Nxg3 {[%clk 0:00:44.3]}
21. Rxe5 {[%clk 0:00:49]} 21... dxe5 {[%clk 0:00:41.1]} 22. Qxg3 {[%clk
0:00:49.3]} 22... Qxg3+ {[%clk 0:00:36.1]} 23. hxg3 {[%clk 0:00:50.2]} 23... Kg7
{[%clk 0:00:31]} 24. Re1 {[%clk 0:00:48.6]} 24... f6 {[%clk 0:00:23.1]} 25. Bc4
{[%clk 0:00:46.4]} 25... b5 {[%clk 0:00:22.3]} 26. Bb3 {[%clk 0:00:45.8]} 26...
Bb7 {[%clk 0:00:21.8]} 27. Be3 {[%clk 0:00:45.9]} 27... Rad8 {[%clk 0:00:21.2]}
28. Rd1 {[%clk 0:00:46.2]} 28... f5 {[%clk 0:00:19.3]} 29. d6 {[%clk 0:00:43.9]}
29... g5 {[%clk 0:00:16.7]} 30. Bb6 {[%clk 0:00:43.7]} 30... f4 {[%clk
0:00:09.5]} 31. Bxd8 {[%clk 0:00:41.3]} 31... Rxd8 {[%clk 0:00:09.2]} 32. gxf4
{[%clk 0:00:38.5]} 32... gxf4 {[%clk 0:00:09.7]} 33. Bd5 {[%clk 0:00:35.6]}
33... Bxd5 {[%clk 0:00:08.6]} 34. Rxd5 {[%clk 0:00:35.8]} 34... Kf6 {[%clk
0:00:08.3]} 35. Ne4+ {[%clk 0:00:31.6]} 35... Ke6 {[%clk 0:00:08.4]} 36. Rd2
{[%clk 0:00:29.5]} 36... Kf5 {[%clk 0:00:08.4]} 37. Nc5 {[%clk 0:00:27.3]} 37...
e4 {[%clk 0:00:08.6]} 38. Rd5+ {[%clk 0:00:25.1]} 38... Kg4 {[%clk 0:00:06.5]}
39. d7 {[%clk 0:00:25.5]} 39... e3 {[%clk 0:00:05.9]} 40. Ne6 {[%clk 0:00:25.3]}
40... Rg8 {[%clk 0:00:05.3]} 41. d8=Q {[%clk 0:00:22.9]} 41... Kf3+ {[%clk
0:00:02.7]} 42. Qxg8 {[%clk 0:00:21.8]} 42... e2 {[%clk 0:00:03.3]} 43. Qg2+
{[%clk 0:00:21.6]} 1-0

[Event "*** Titled Tuesday Blitz"]
[Site "Chess.com"]
[Date "2020.11.24"]
[Round "9"]
[White "Gogolev_Artemy"]
[Black "GelmanAlexander"]
[Result "0-1"]
[WhiteElo "2476"]
[BlackElo "2589"]
[TimeControl "180+1"]
[EndTime "12:03:23 PST"]
[Termination "GelmanAlexander won on time"]

1. Nf3 {[%clk 0:03:00.9]} 1... c5 {[%clk 0:02:59.6]} 2. c4 {[%clk 0:03:00.6]}
2... Nf6 {[%clk 0:02:59.7]} 3. Nc3 {[%clk 0:02:59.2]} 3... e6 {[%clk 0:02:59.8]}
4. g3 {[%clk 0:02:57]} 4... a6 {[%clk 0:02:58.6]} 5. Bg2 {[%clk 0:02:55.1]} 5...
Be7 {[%clk 0:02:58.8]} 6. O-O {[%clk 0:02:53.9]} 6... O-O {[%clk 0:02:58.4]} 7.
d4 {[%clk 0:02:41.4]} 7... cxd4 {[%clk 0:02:58.4]} 8. Nxd4 {[%clk 0:02:41.8]}
8... d6 {[%clk 0:02:58.7]} 9. e4 {[%clk 0:02:36.5]} 9... Qc7 {[%clk 0:02:58.9]}
10. Be3 {[%clk 0:02:36.1]} 10... Nbd7 {[%clk 0:02:57.6]} 11. Qe2 {[%clk
0:02:28.9]} 11... Ne5 {[%clk 0:02:57.3]} 12. b3 {[%clk 0:02:24]} 12... Bd7
{[%clk 0:02:56.8]} 13. h3 {[%clk 0:02:22.1]} 13... Rac8 {[%clk 0:02:56.1]} 14.
Rac1 {[%clk 0:02:21.2]} 14... h6 {[%clk 0:02:47.3]} 15. f4 {[%clk 0:02:19.9]}
15... Ng6 {[%clk 0:02:47]} 16. g4 {[%clk 0:02:01]} 16... Qa5 {[%clk 0:02:34.2]}
17. f5 {[%clk 0:01:19.5]} 17... Ne5 {[%clk 0:02:30.8]} 18. g5 {[%clk 0:01:15.7]}
18... hxg5 {[%clk 0:02:29.5]} 19. Bxg5 {[%clk 0:01:16.1]} 19... b5 {[%clk
0:02:13.9]} 20. Bd2 {[%clk 0:00:57.3]} 20... Qb6 {[%clk 0:01:34]} 21. Be3 {[%clk
0:00:56.1]} 21... Qa5 {[%clk 0:01:34.1]} 22. Bd2 {[%clk 0:00:54.1]} 22... Qb6
{[%clk 0:01:27.9]} 23. Be3 {[%clk 0:00:45.1]} 23... Qb7 {[%clk 0:01:23.8]} 24.
cxb5 {[%clk 0:00:37.9]} 24... axb5 {[%clk 0:01:23.7]} 25. Ndxb5 {[%clk
0:00:29.8]} 25... Bc6 {[%clk 0:00:54.5]} 26. Na7 {[%clk 0:00:29.3]} 26... Rc7
{[%clk 0:00:47.5]} 27. Nxc6 {[%clk 0:00:28.2]} 27... Rxc6 {[%clk 0:00:48]} 28.
fxe6 {[%clk 0:00:23.7]} 28... fxe6 {[%clk 0:00:48]} 29. Bd4 {[%clk 0:00:16.8]}
29... Rfc8 {[%clk 0:00:43.6]} 30. Qd2 {[%clk 0:00:14.5]} 30... Qb4 {[%clk
0:00:40.8]} 31. Qe3 {[%clk 0:00:10.5]} 31... Neg4 {[%clk 0:00:26.5]} 32. hxg4
{[%clk 0:00:09.5]} 32... Nxg4 {[%clk 0:00:27.4]} 33. Qd2 {[%clk 0:00:08.4]}
33... e5 {[%clk 0:00:25.3]} 34. Be3 {[%clk 0:00:03.1]} 34... Rxc3 {[%clk
0:00:21.6]} 35. Rxc3 {[%clk 0:00:02.9]} 35... Rxc3 {[%clk 0:00:21]} 36. Bf2
{[%clk 0:00:01.9]} 36... Qa5 {[%clk 0:00:11.2]} 37. Rc1 {[%clk 0:00:01.1]} 37...
Rxc1+ {[%clk 0:00:10.5]} 38. Qxc1 {[%clk 0:00:01.2]} 38... Qxa2 {[%clk
0:00:11.1]} 39. Qf1 {[%clk 0:00:01]} 39... Bg5 {[%clk 0:00:09.7]} 0-1

[Event "*** Titled Tuesday Blitz"]
[Site "Chess.com"]
[Date "2020.11.24"]
[Round "9"]
[White "xamax2000"]
[Black "DrVelja"]
[Result "0-1"]
[WhiteElo "2640"]
[BlackElo "2778"]
[TimeControl "180+1"]
[EndTime "12:03:25 PST"]
[Termination "DrVelja won by checkmate"]

1. e4 {[%clk 0:03:00.9]} 1... g6 {[%clk 0:03:00.5]} 2. d4 {[%clk 0:03:00.6]}
2... Bg7 {[%clk 0:03:01.4]} 3. Nf3 {[%clk 0:03:01]} 3... c6 {[%clk 0:03:00.7]}
4. Bd3 {[%clk 0:02:58.4]} 4... d5 {[%clk 0:03:00.9]} 5. exd5 {[%clk 0:02:59.1]}
5... cxd5 {[%clk 0:03:00.9]} 6. c3 {[%clk 0:02:56.4]} 6... Qc7 {[%clk
0:02:56.6]} 7. O-O {[%clk 0:02:54.5]} 7... Nc6 {[%clk 0:02:56.8]} 8. Na3 {[%clk
0:02:50.2]} 8... Nf6 {[%clk 0:02:42.9]} 9. Nc2 {[%clk 0:02:47.4]} 9... O-O
{[%clk 0:02:39.3]} 10. Re1 {[%clk 0:02:47.1]} 10... Bf5 {[%clk 0:02:34]} 11.
Bxf5 {[%clk 0:02:46.6]} 11... gxf5 {[%clk 0:02:34.9]} 12. g3 {[%clk 0:02:46]}
12... e6 {[%clk 0:02:31.6]} 13. Bf4 {[%clk 0:02:45.8]} 13... Qe7 {[%clk
0:02:28.2]} 14. Nh4 {[%clk 0:02:17.1]} 14... Ne4 {[%clk 0:02:25.1]} 15. f3
{[%clk 0:02:14.4]} 15... Nd6 {[%clk 0:02:24.2]} 16. Qc1 {[%clk 0:02:12.9]} 16...
Rae8 {[%clk 0:02:14.7]} 17. Bg5 {[%clk 0:02:08.8]} 17... f6 {[%clk 0:02:13.8]}
18. Bh6 {[%clk 0:02:06.2]} 18... Kh8 {[%clk 0:02:05.3]} 19. b3 {[%clk
0:01:59.7]} 19... e5 {[%clk 0:01:47.3]} 20. Qd2 {[%clk 0:01:45.8]} 20... f4
{[%clk 0:01:39.5]} 21. Bxf4 {[%clk 0:01:37.8]} 21... Qf7 {[%clk 0:01:36.1]} 22.
Bh6 {[%clk 0:01:33.4]} 22... e4 {[%clk 0:01:31.6]} 23. Bxg7+ {[%clk 0:01:31.1]}
23... Qxg7 {[%clk 0:01:30.9]} 24. f4 {[%clk 0:01:31.1]} 24... Rg8 {[%clk
0:01:17.6]} 25. Ne3 {[%clk 0:01:28.9]} 25... Qf7 {[%clk 0:01:15.6]} 26. f5
{[%clk 0:01:15.8]} 26... Rg5 {[%clk 0:01:11.3]} 27. Qf2 {[%clk 0:01:15.2]} 27...
Reg8 {[%clk 0:00:39.5]} 28. Qf4 {[%clk 0:01:12.3]} 28... Qd7 {[%clk 0:00:29.1]}
29. Kh1 {[%clk 0:01:10.1]} 29... Ne7 {[%clk 0:00:29.1]} 30. Rf1 {[%clk
0:01:04.4]} 30... b5 {[%clk 0:00:28.1]} 31. a4 {[%clk 0:01:00.8]} 31... Rc8
{[%clk 0:00:17.6]} 32. axb5 {[%clk 0:00:21.6]} 32... Rxc3 {[%clk 0:00:16.2]} 33.
Ra6 {[%clk 0:00:20.8]} 33... Nec8 {[%clk 0:00:07.4]} 34. Nxd5 {[%clk 0:00:19.3]}
34... Rc2 {[%clk 0:00:02.6]} 35. Nxf6 {[%clk 0:00:14.2]} 35... Qxb5 {[%clk
0:00:03.1]} 36. Raa1 {[%clk 0:00:06.6]} 36... Qe2 {[%clk 0:00:03.3]} 37. Nf3
{[%clk 0:00:02.9]} 37... exf3 {[%clk 0:00:02.7]} 38. Qh4 {[%clk 0:00:02.3]}
38... Qg2# {[%clk 0:00:02.8]} 0-1

[Event "*** Titled Tuesday Blitz"]
[Site "Chess.com"]
[Date "2020.11.24"]
[Round "9"]
[White "yobdc"]
[Black "FMJoseHerrera"]
[Result "1-0"]
[WhiteElo "2496"]
[BlackElo "2578"]
[TimeControl "180+1"]
[EndTime "12:03:29 PST"]
[Termination "yobdc won on time"]

1. d4 {[%clk 0:03:00.9]} 1... Nf6 {[%clk 0:02:59.1]} 2. Nf3 {[%clk 0:03:00.8]}
2... c5 {[%clk 0:02:57.9]} 3. e3 {[%clk 0:03:00.6]} 3... g6 {[%clk 0:02:55.6]}
4. Be2 {[%clk 0:02:54.1]} 4... Bg7 {[%clk 0:02:54.7]} 5. O-O {[%clk 0:02:53.9]}
5... O-O {[%clk 0:02:54]} 6. b3 {[%clk 0:02:53.2]} 6... cxd4 {[%clk 0:02:52.2]}
7. exd4 {[%clk 0:02:51.7]} 7... d6 {[%clk 0:02:52]} 8. Bb2 {[%clk 0:02:51.2]}
8... a6 {[%clk 0:02:52.1]} 9. c4 {[%clk 0:02:50.9]} 9... b6 {[%clk 0:02:51.1]}
10. Nc3 {[%clk 0:02:50.6]} 10... Bb7 {[%clk 0:02:51.2]} 11. d5 {[%clk
0:02:49.8]} 11... Nbd7 {[%clk 0:02:51.1]} 12. Re1 {[%clk 0:02:49.5]} 12... Rc8
{[%clk 0:02:33.3]} 13. Rc1 {[%clk 0:02:43.6]} 13... Re8 {[%clk 0:02:32.8]} 14.
Nd4 {[%clk 0:02:41]} 14... Qc7 {[%clk 0:02:32.1]} 15. Bf1 {[%clk 0:02:35.3]}
15... Qb8 {[%clk 0:02:31.6]} 16. g3 {[%clk 0:02:34.1]} 16... b5 {[%clk
0:02:23.1]} 17. cxb5 {[%clk 0:02:29.4]} 17... Nxd5 {[%clk 0:02:21.7]} 18. Nxd5
{[%clk 0:02:27.9]} 18... Bxd5 {[%clk 0:02:22.6]} 19. Rxc8 {[%clk 0:02:24.9]}
19... Qxc8 {[%clk 0:02:22.1]} 20. bxa6 {[%clk 0:02:22.6]} 20... Qa8 {[%clk
0:02:20.1]} 21. Nb5 {[%clk 0:02:09.4]} 21... Bxb2 {[%clk 0:00:58.8]} 22. Nc7
{[%clk 0:02:09.3]} 22... Qc6 {[%clk 0:00:57]} 23. Nxd5 {[%clk 0:02:02.5]} 23...
Ne5 {[%clk 0:00:54]} 24. Bg2 {[%clk 0:01:51.1]} 24... Qc5 {[%clk 0:00:33.2]} 25.
b4 {[%clk 0:01:38.2]} 25... Qa7 {[%clk 0:00:32.3]} 26. b5 {[%clk 0:01:29.6]}
26... Bd4 {[%clk 0:00:32.2]} 27. Qc2 {[%clk 0:01:16.3]} 27... Ng4 {[%clk
0:00:29.5]} 28. Rf1 {[%clk 0:01:12.1]} 28... Kg7 {[%clk 0:00:27.8]} 29. h3
{[%clk 0:01:11.1]} 29... Ne5 {[%clk 0:00:27.8]} 30. Qc7 {[%clk 0:01:05.2]} 30...
Bxf2+ {[%clk 0:00:16.6]} 31. Rxf2 {[%clk 0:01:00.7]} 31... Qd4 {[%clk
0:00:17.5]} 32. Qc3 {[%clk 0:00:55.6]} 32... Qd1+ {[%clk 0:00:17.3]} 33. Rf1
{[%clk 0:00:52.3]} 33... Qa4 {[%clk 0:00:17.4]} 34. Kh2 {[%clk 0:00:39.4]} 34...
Qxb5 {[%clk 0:00:16.7]} 35. Nc7 {[%clk 0:00:37.3]} 35... Qb8 {[%clk 0:00:16.7]}
36. Nxe8+ {[%clk 0:00:36.9]} 36... Qxe8 {[%clk 0:00:17.6]} 37. a7 {[%clk
0:00:36.6]} 37... h5 {[%clk 0:00:17.3]} 38. a8=Q {[%clk 0:00:36.5]} 38... Qd7
{[%clk 0:00:15.3]} 39. Qac8 {[%clk 0:00:33.3]} 39... Qb5 {[%clk 0:00:14.4]} 40.
Q8c7 {[%clk 0:00:28.9]} 40... Qe8 {[%clk 0:00:11.5]} 41. a4 {[%clk 0:00:27.7]}
41... h4 {[%clk 0:00:11.2]} 42. gxh4 {[%clk 0:00:27]} 42... Qxa4 {[%clk
0:00:10.5]} 43. Qxe7 {[%clk 0:00:25.1]} 43... Kh6 {[%clk 0:00:11.1]} 44. Qe3+
{[%clk 0:00:21.1]} 44... Kg7 {[%clk 0:00:11.4]} 45. Q3xe5+ {[%clk 0:00:20.6]}
45... dxe5 {[%clk 0:00:11.8]} 46. Rxf7+ {[%clk 0:00:20.9]} 1-0

[Event "*** Titled Tuesday Blitz"]
[Site "Chess.com"]
[Date "2020.11.24"]
[Round "9"]
[White "LamaChampetre"]
[Black "CM_rui"]
[Result "0-1"]
[WhiteElo "2219"]
[BlackElo "2364"]
[TimeControl "180+1"]
[EndTime "12:03:30 PST"]
[Termination "CM_rui won by resignation"]

1. d4 {[%clk 0:03:00.9]} 1... Nf6 {[%clk 0:02:58.7]} 2. c4 {[%clk 0:02:59.9]}
2... e6 {[%clk 0:02:59]} 3. Nf3 {[%clk 0:02:57.8]} 3... Bb4+ {[%clk 0:02:59.3]}
4. Nbd2 {[%clk 0:02:53.3]} 4... O-O {[%clk 0:02:58.5]} 5. g3 {[%clk 0:02:53.1]}
5... d6 {[%clk 0:02:57.9]} 6. Bg2 {[%clk 0:02:52.9]} 6... Nbd7 {[%clk 0:02:58]}
7. O-O {[%clk 0:02:50]} 7... e5 {[%clk 0:02:57.5]} 8. a3 {[%clk 0:02:31.6]} 8...
Bxd2 {[%clk 0:02:56.6]} 9. Bxd2 {[%clk 0:02:31.6]} 9... Qe7 {[%clk 0:02:53.6]}
10. dxe5 {[%clk 0:02:16.5]} 10... dxe5 {[%clk 0:02:53.1]} 11. Qc2 {[%clk
0:02:13.8]} 11... Rb8 {[%clk 0:02:50.1]} 12. Bc3 {[%clk 0:02:10.6]} 12... b6
{[%clk 0:02:43.4]} 13. b4 {[%clk 0:01:53.9]} 13... Bb7 {[%clk 0:02:36.7]} 14.
Rad1 {[%clk 0:01:52.7]} 14... h6 {[%clk 0:02:19.8]} 15. Rfe1 {[%clk 0:01:50.3]}
15... Rfe8 {[%clk 0:02:14.7]} 16. Nh4 {[%clk 0:01:37.6]} 16... Bxg2 {[%clk
0:02:06.8]} 17. Kxg2 {[%clk 0:01:38.5]} 17... Nf8 {[%clk 0:02:00.7]} 18. e4
{[%clk 0:01:32.7]} 18... Qe6 {[%clk 0:01:52.3]} 19. Bb2 {[%clk 0:01:30.6]} 19...
N8h7 {[%clk 0:01:42.5]} 20. c5 {[%clk 0:01:13]} 20... Ng5 {[%clk 0:01:39.3]} 21.
f3 {[%clk 0:01:05.3]} 21... Qh3+ {[%clk 0:01:30]} 22. Kg1 {[%clk 0:01:03.2]}
22... bxc5 {[%clk 0:01:02.6]} 23. Qxc5 {[%clk 0:01:00]} 23... Nh5 {[%clk
0:00:52.6]} 24. Qf2 {[%clk 0:00:55.9]} 24... c5 {[%clk 0:00:45.5]} 25. Bc3
{[%clk 0:00:49.9]} 25... cxb4 {[%clk 0:00:43.9]} 26. Bxb4 {[%clk 0:00:50]} 26...
Qe6 {[%clk 0:00:35.5]} 27. Rd6 {[%clk 0:00:41.4]} 27... Nh3+ {[%clk 0:00:29.5]}
28. Kg2 {[%clk 0:00:37.2]} 28... Nxf2 {[%clk 0:00:27.3]} 29. Rxe6 {[%clk
0:00:37.4]} 29... Rxe6 {[%clk 0:00:24.4]} 30. Kxf2 {[%clk 0:00:37.5]} 30... Rc6
{[%clk 0:00:23.7]} 31. Re2 {[%clk 0:00:33]} 31... Nf6 {[%clk 0:00:21.4]} 32. Nf5
{[%clk 0:00:31.9]} 32... Kh7 {[%clk 0:00:20.2]} 33. Bd6 {[%clk 0:00:25.5]} 33...
Rb3 {[%clk 0:00:20.2]} 34. Bxe5 {[%clk 0:00:24.5]} 34... Rxa3 {[%clk 0:00:18.9]}
35. Nd4 {[%clk 0:00:22.4]} 35... Rcc3 {[%clk 0:00:16.8]} 36. f4 {[%clk
0:00:15.3]} 36... Ng4+ {[%clk 0:00:16.4]} 37. Kg2 {[%clk 0:00:14.8]} 37... Nxe5
{[%clk 0:00:12]} 38. fxe5 {[%clk 0:00:15.7]} 38... Re3 {[%clk 0:00:11.4]} 39.
Rf2 {[%clk 0:00:13.6]} 39... Rxe4 {[%clk 0:00:11.1]} 40. Nc2 {[%clk 0:00:10.3]}
40... Ra2 {[%clk 0:00:10.3]} 41. Kf3 {[%clk 0:00:05.6]} 41... Rxe5 {[%clk
0:00:09.4]} 42. Nd4 {[%clk 0:00:01.1]} 42... Rxf2+ {[%clk 0:00:07.4]} 43. Kxf2
{[%clk 0:00:02]} 43... a5 {[%clk 0:00:07.7]} 0-1